[Event "*** SCC Grand Prix: Titled Tuesday Blitz"]
[Site "Chess.com"]
[Date "2020.09.29"]
[Round "4"]
[White "DariaVoit"]
[Black "Julianos82"]
[Result "1-0"]
[WhiteElo "2468"]
[BlackElo "2312"]
[TimeControl "180+1"]
[EndTime "10:39:33 PDT"]
[Termination "DariaVoit won by resignation"]

1. f4 {[%clk 0:03:00.9]} 1... e5 {[%clk 0:02:58.9]} 2. fxe5 {[%clk 0:03:00.8]}
2... Nc6 {[%clk 0:02:56.8]} 3. Nf3 {[%clk 0:03:00]} 3... g5 {[%clk 0:02:57]} 4.
d4 {[%clk 0:02:51.1]} 4... g4 {[%clk 0:02:56.6]} 5. Ng5 {[%clk 0:02:46.2]} 5...
d6 {[%clk 0:02:49.8]} 6. exd6 {[%clk 0:02:35.3]} 6... Bxd6 {[%clk 0:02:50.7]} 7.
g3 {[%clk 0:02:29.1]} 7... Nxd4 {[%clk 0:02:37]} 8. Bg2 {[%clk 0:02:28.6]} 8...
Bc5 {[%clk 0:02:18.1]} 9. c3 {[%clk 0:02:14.4]} 9... Ne6 {[%clk 0:01:43.9]} 10.
Qxd8+ {[%clk 0:02:13.9]} 10... Nxd8 {[%clk 0:01:43.7]} 11. Bf4 {[%clk
0:02:14.3]} 11... Bb6 {[%clk 0:01:27.7]} 12. Na3 {[%clk 0:02:10.7]} 12... Ne6
{[%clk 0:01:26.3]} 13. Nxe6 {[%clk 0:02:03.3]} 13... Bxe6 {[%clk 0:01:27.2]} 14.
Bxb7 {[%clk 0:02:02.8]} 14... Rd8 {[%clk 0:01:27]} 15. Bc6+ {[%clk 0:01:53.7]}
15... Kf8 {[%clk 0:01:26.1]} 16. Rf1 {[%clk 0:01:44.4]} 16... h5 {[%clk
0:01:20.7]} 17. b3 {[%clk 0:01:13.4]} 17... Ne7 {[%clk 0:01:15.7]} 18. Be4
{[%clk 0:01:13.2]} 18... Nd5 {[%clk 0:01:12.2]} 19. O-O-O {[%clk 0:01:07.8]}
19... Ke7 {[%clk 0:00:55.8]} 20. Bg5+ {[%clk 0:00:45.2]} 20... f6 {[%clk
0:00:54.5]} 21. Bxd5 {[%clk 0:00:44.3]} 21... fxg5 {[%clk 0:00:52.8]} 22. Bxe6
{[%clk 0:00:43.5]} 22... Kxe6 {[%clk 0:00:53.7]} 23. Nc4 {[%clk 0:00:43.2]}
23... Bc5 {[%clk 0:00:50.9]} 24. e4 {[%clk 0:00:38.8]} 24... h4 {[%clk
0:00:48.8]} 25. Rxd8 {[%clk 0:00:30]} 25... Rxd8 {[%clk 0:00:49.7]} 26. Kc2
{[%clk 0:00:28.5]} 26... h3 {[%clk 0:00:42.7]} 27. b4 {[%clk 0:00:24.6]} 27...
Bb6 {[%clk 0:00:35.8]} 28. Nxb6 {[%clk 0:00:23.8]} 28... axb6 {[%clk 0:00:36.7]}
29. Rf5 {[%clk 0:00:23.7]} 29... Ra8 {[%clk 0:00:32.6]} 30. Kb3 {[%clk
0:00:23.7]} 30... Kd6 {[%clk 0:00:30.4]} 31. Rxg5 {[%clk 0:00:22.9]} 31... Rf8
{[%clk 0:00:28.6]} 32. Rxg4 {[%clk 0:00:21.8]} 32... Rf2 {[%clk 0:00:28.6]} 33.
Rh4 {[%clk 0:00:21.5]} 33... Rxh2 {[%clk 0:00:28.6]} 34. a4 {[%clk 0:00:20.6]}
34... Rh1 {[%clk 0:00:28.3]} 35. Kc4 {[%clk 0:00:20.7]} 35... h2 {[%clk
0:00:28]} 36. Rh5 {[%clk 0:00:21.2]} 36... Kc6 {[%clk 0:00:27.6]} 37. Rh6+
{[%clk 0:00:19.4]} 37... Kb7 {[%clk 0:00:27]} 38. e5 {[%clk 0:00:19.6]} 38... c6
{[%clk 0:00:24]} 39. Rh7+ {[%clk 0:00:19]} 39... Kc8 {[%clk 0:00:24.1]} 40. g4
{[%clk 0:00:18.2]} 40... Rg1 {[%clk 0:00:22.4]} 41. Rxh2 {[%clk 0:00:17.6]}
41... Rxg4+ {[%clk 0:00:23.1]} 42. Kd3 {[%clk 0:00:17.7]} 42... Rg3+ {[%clk
0:00:23.3]} 43. Kd2 {[%clk 0:00:16.7]} 43... Rg5 {[%clk 0:00:23]} 44. Re2 {[%clk
0:00:16.7]} 44... Kd7 {[%clk 0:00:23.3]} 45. e6+ {[%clk 0:00:16.9]} 45... Ke7
{[%clk 0:00:24.2]} 46. Kd3 {[%clk 0:00:16.8]} 46... Rd5+ {[%clk 0:00:24.2]} 47.
Kc4 {[%clk 0:00:16.4]} 47... Rh5 {[%clk 0:00:23.8]} 48. Re4 {[%clk 0:00:16.2]}
48... Rg5 {[%clk 0:00:23.3]} 49. Kb3 {[%clk 0:00:16.1]} 49... Rf5 {[%clk
0:00:23]} 50. Re3 {[%clk 0:00:16.3]} 50... Rd5 {[%clk 0:00:22.8]} 51. c4 {[%clk
0:00:16]} 51... Rg5 {[%clk 0:00:22.8]} 52. Kc3 {[%clk 0:00:16.1]} 52... Rf5
{[%clk 0:00:22.5]} 53. Kd4 {[%clk 0:00:16.2]} 53... Rh5 {[%clk 0:00:21.9]} 54.
c5 {[%clk 0:00:16.3]} 54... bxc5+ {[%clk 0:00:20.9]} 55. bxc5 {[%clk 0:00:17.2]}
55... Rh4+ {[%clk 0:00:21.2]} 56. Re4 {[%clk 0:00:17.7]} 56... Rh1 {[%clk
0:00:21.4]} 57. Kc4 {[%clk 0:00:17.9]} 57... Rc1+ {[%clk 0:00:20.7]} 58. Kb4
{[%clk 0:00:18.2]} 58... Rb1+ {[%clk 0:00:21.2]} 59. Ka5 {[%clk 0:00:18.6]}
59... Rb2 {[%clk 0:00:21.4]} 60. Ka6 {[%clk 0:00:18.6]} 60... Rb4 {[%clk
0:00:19.1]} 61. Rxb4 {[%clk 0:00:17.2]} 1-0

[Event "*** SCC Grand Prix: Titled Tuesday Blitz"]
[Site "Chess.com"]
[Date "2020.09.29"]
[Round "4"]
[White "OsorioFernando"]
[Black "TheCavemanChesss"]
[Result "0-1"]
[WhiteElo "2290"]
[BlackElo "2440"]
[TimeControl "180+1"]
[EndTime "10:39:37 PDT"]
[Termination "TheCavemanChesss won on time"]

1. e4 {[%clk 0:03:00]} 1... c5 {[%clk 0:02:56.8]} 2. Nc3 {[%clk 0:02:59.6]} 2...
Nc6 {[%clk 0:02:55.5]} 3. g3 {[%clk 0:03:00.4]} 3... e6 {[%clk 0:02:55.8]} 4.
Bg2 {[%clk 0:03:00.1]} 4... Nge7 {[%clk 0:02:56]} 5. Nge2 {[%clk 0:02:59.4]}
5... d5 {[%clk 0:02:55.1]} 6. exd5 {[%clk 0:02:59.2]} 6... Nxd5 {[%clk
0:02:54.5]} 7. Nxd5 {[%clk 0:02:58.9]} 7... exd5 {[%clk 0:02:54.9]} 8. d4 {[%clk
0:02:59.5]} 8... cxd4 {[%clk 0:02:39.2]} 9. Nxd4 {[%clk 0:02:53.3]} 9... Bc5
{[%clk 0:02:39.4]} 10. Qe2+ {[%clk 0:02:49.1]} 10... Qe7 {[%clk 0:02:15.9]} 11.
Qxe7+ {[%clk 0:02:41.2]} 11... Bxe7 {[%clk 0:02:16.8]} 12. Be3 {[%clk 0:02:37]}
12... O-O {[%clk 0:01:47.8]} 13. Bxd5 {[%clk 0:02:29]} 13... Nxd4 {[%clk
0:01:13.3]} 14. Bxd4 {[%clk 0:02:28.1]} 14... Rd8 {[%clk 0:01:13.8]} 15. c4
{[%clk 0:01:52.1]} 15... Be6 {[%clk 0:01:13.2]} 16. Bxe6 {[%clk 0:01:42.8]}
16... Rxd4 {[%clk 0:01:13.1]} 17. Bd5 {[%clk 0:01:41.8]} 17... Bb4+ {[%clk
0:01:08.5]} 18. Kf1 {[%clk 0:01:41.5]} 18... Rd2 {[%clk 0:01:08.7]} 19. Rb1
{[%clk 0:01:39.7]} 19... Bc5 {[%clk 0:01:07.3]} 20. Kg2 {[%clk 0:01:36]} 20...
Rxf2+ {[%clk 0:01:06.3]} 21. Kh3 {[%clk 0:01:35.5]} 21... Re8 {[%clk 0:00:42.4]}
22. Rhf1 {[%clk 0:01:32.7]} 22... Rxf1 {[%clk 0:00:31.5]} 23. Rxf1 {[%clk
0:01:31.3]} 23... Re7 {[%clk 0:00:32.4]} 24. Rf5 {[%clk 0:01:25.9]} 24... b6
{[%clk 0:00:31]} 25. a3 {[%clk 0:01:24.7]} 25... g6 {[%clk 0:00:31.3]} 26. Rf3
{[%clk 0:01:21.9]} 26... a5 {[%clk 0:00:31.3]} 27. Rf6 {[%clk 0:01:08.1]} 27...
Kg7 {[%clk 0:00:27]} 28. Rc6 {[%clk 0:01:05]} 28... Re2 {[%clk 0:00:26.3]} 29.
b4 {[%clk 0:00:57.7]} 29... Bg1 {[%clk 0:00:19.3]} 30. Rc7 {[%clk 0:00:32.7]}
30... Rxh2+ {[%clk 0:00:18.4]} 31. Kg4 {[%clk 0:00:32.6]} 31... h5+ {[%clk
0:00:17]} 32. Kf3 {[%clk 0:00:30.9]} 32... Rf2+ {[%clk 0:00:17.5]} 33. Ke4
{[%clk 0:00:30.8]} 33... axb4 {[%clk 0:00:17.7]} 34. axb4 {[%clk 0:00:30.4]}
34... Kf8 {[%clk 0:00:17.6]} 35. Ke5 {[%clk 0:00:25.2]} 35... Re2+ {[%clk
0:00:16.4]} 36. Kd6 {[%clk 0:00:21.6]} 36... f5 {[%clk 0:00:11.3]} 37. Kc6
{[%clk 0:00:18.4]} 37... Re3 {[%clk 0:00:10.3]} 38. Kxb6 {[%clk 0:00:13.3]}
38... Rxg3+ {[%clk 0:00:10.6]} 39. Kc6 {[%clk 0:00:13.3]} 39... h4 {[%clk
0:00:11.3]} 40. b5 {[%clk 0:00:11.8]} 40... h3 {[%clk 0:00:11.7]} 41. b6 {[%clk
0:00:11.3]} 41... Rb3 {[%clk 0:00:11.3]} 42. b7 {[%clk 0:00:10.6]} 42... Rc3
{[%clk 0:00:11.9]} 43. Rh7 {[%clk 0:00:09.9]} 43... Ba7 {[%clk 0:00:10.7]} 44.
Kd6 {[%clk 0:00:05.3]} 44... h2 {[%clk 0:00:09.7]} 45. Ke6 {[%clk 0:00:03.1]}
45... Re3+ {[%clk 0:00:08.9]} 46. Kf6 {[%clk 0:00:02.7]} 46... Bd4+ {[%clk
0:00:08.8]} 47. Kxg6 {[%clk 0:00:02.9]} 47... Rg3+ {[%clk 0:00:09.2]} 48. Kxf5
{[%clk 0:00:02.4]} 48... Ba7 {[%clk 0:00:07.1]} 49. Rxh2 {[%clk 0:00:01.9]}
49... Rb3 {[%clk 0:00:07.5]} 50. Rh7 {[%clk 0:00:01.4]} 50... Rb6 {[%clk
0:00:06.7]} 51. Ke4 {[%clk 0:00:01.1]} 51... Rf6 {[%clk 0:00:06.9]} 0-1

[Event "*** SCC Grand Prix: Titled Tuesday Blitz"]
[Site "Chess.com"]
[Date "2020.09.29"]
[Round "4"]
[White "PetrolulSah"]
[Black "DishonorOnYourCow"]
[Result "0-1"]
[WhiteElo "2186"]
[BlackElo "2392"]
[TimeControl "180+1"]
[EndTime "10:39:37 PDT"]
[Termination "DishonorOnYourCow won by checkmate"]

1. Nf3 {[%clk 0:02:54.9]} 1... d5 {[%clk 0:02:59]} 2. d4 {[%clk 0:02:54.4]} 2...
Nf6 {[%clk 0:02:56.5]} 3. g3 {[%clk 0:02:54.4]} 3... g6 {[%clk 0:02:56.4]} 4.
Bg2 {[%clk 0:02:54.8]} 4... Bg7 {[%clk 0:02:56.2]} 5. O-O {[%clk 0:02:54.9]}
5... O-O {[%clk 0:02:56.4]} 6. c4 {[%clk 0:02:55.1]} 6... dxc4 {[%clk
0:02:56.9]} 7. Qc2 {[%clk 0:02:54.7]} 7... Be6 {[%clk 0:02:29]} 8. Nc3 {[%clk
0:02:52.2]} 8... c6 {[%clk 0:02:27.5]} 9. e4 {[%clk 0:02:51.7]} 9... b5 {[%clk
0:02:25]} 10. h3 {[%clk 0:02:49.6]} 10... Qc8 {[%clk 0:02:23.2]} 11. Kh2 {[%clk
0:02:49.2]} 11... Rd8 {[%clk 0:02:22.8]} 12. Rd1 {[%clk 0:02:40.6]} 12... Nbd7
{[%clk 0:02:11.6]} 13. d5 {[%clk 0:02:37.5]} 13... cxd5 {[%clk 0:02:11.1]} 14.
exd5 {[%clk 0:02:33.7]} 14... Bf5 {[%clk 0:02:10.9]} 15. Qe2 {[%clk 0:02:33.4]}
15... Bd3 {[%clk 0:01:28.3]} 16. Qxe7 {[%clk 0:02:31.4]} 16... Re8 {[%clk
0:01:20]} 17. Qb4 {[%clk 0:02:26.9]} 17... Bf8 {[%clk 0:00:50.5]} 18. Qxb5
{[%clk 0:02:24.2]} 18... Rb8 {[%clk 0:00:39.3]} 19. Qa4 {[%clk 0:02:21.6]} 19...
Nc5 {[%clk 0:00:28.5]} 20. Qxa7 {[%clk 0:02:18.7]} 20... Re7 {[%clk 0:00:24.2]}
21. Qa3 {[%clk 0:02:12.1]} 21... Ra8 {[%clk 0:00:22.1]} 22. Qb4 {[%clk
0:02:05.8]} 22... Rb7 {[%clk 0:00:20.6]} 23. Nb5 {[%clk 0:02:04]} 23... Nb3
{[%clk 0:00:10.4]} 24. d6 {[%clk 0:01:42.3]} 24... Nxa1 {[%clk 0:00:09.5]} 25.
Bg5 {[%clk 0:01:34.9]} 25... Nc2 {[%clk 0:00:09.4]} 26. Qc3 {[%clk 0:01:22.1]}
26... Ne4 {[%clk 0:00:09.8]} 27. Qe5 {[%clk 0:01:18.3]} 27... Bg7 {[%clk
0:00:10.3]} 28. Qd5 {[%clk 0:01:02.3]} 28... Nb4 {[%clk 0:00:10.7]} 29. d7
{[%clk 0:00:53.2]} 29... Rxd7 {[%clk 0:00:10.8]} 30. Nd6 {[%clk 0:00:50.7]}
30... Rxd6 {[%clk 0:00:10.3]} 31. Qb5 {[%clk 0:00:47.9]} 31... Rb8 {[%clk
0:00:09.6]} 32. Qa4 {[%clk 0:00:47.9]} 32... Nxg5 {[%clk 0:00:09.8]} 33. Nxg5
{[%clk 0:00:45.7]} 33... Qf5 {[%clk 0:00:10.4]} 34. Nf3 {[%clk 0:00:39.1]} 34...
Bc2 {[%clk 0:00:10.8]} 35. Rxd6 {[%clk 0:00:37.5]} 35... Bxa4 {[%clk 0:00:10.1]}
36. Rd2 {[%clk 0:00:32.6]} 36... Bf6 {[%clk 0:00:09.7]} 37. h4 {[%clk 0:00:32]}
37... Qd7 {[%clk 0:00:09.7]} 38. Rxd7 {[%clk 0:00:31.5]} 38... Bxd7 {[%clk
0:00:09.9]} 39. Nd2 {[%clk 0:00:31]} 39... Nd3 {[%clk 0:00:10.3]} 40. Nxc4
{[%clk 0:00:30.8]} 40... Nxb2 {[%clk 0:00:10.8]} 41. Nd6 {[%clk 0:00:29.8]}
41... Nd3 {[%clk 0:00:10]} 42. Ne4 {[%clk 0:00:29.4]} 42... Bg7 {[%clk
0:00:09.4]} 43. a4 {[%clk 0:00:29.1]} 43... Rb2 {[%clk 0:00:09.5]} 44. a5 {[%clk
0:00:28.2]} 44... Bc6 {[%clk 0:00:09.9]} 45. Nc5 {[%clk 0:00:23.9]} 45... Nxc5
{[%clk 0:00:08.4]} 46. Bxc6 {[%clk 0:00:23.8]} 46... Ra2 {[%clk 0:00:09.1]} 47.
a6 {[%clk 0:00:22.7]} 47... Rxa6 {[%clk 0:00:09.1]} 48. Bf3 {[%clk 0:00:22.4]}
48... Rb6 {[%clk 0:00:10]} 49. Kg2 {[%clk 0:00:22.4]} 49... h5 {[%clk
0:00:10.9]} 50. Be2 {[%clk 0:00:21.2]} 50... Bd4 {[%clk 0:00:11.8]} 51. Bf3
{[%clk 0:00:21.2]} 51... Rb2 {[%clk 0:00:12.7]} 52. Be4 {[%clk 0:00:21.4]} 52...
Rxf2+ {[%clk 0:00:12.7]} 53. Kh3 {[%clk 0:00:21.6]} 53... Nxe4 {[%clk
0:00:13.1]} 54. g4 {[%clk 0:00:22.1]} 54... Rf3+ {[%clk 0:00:13.5]} 55. Kg2
{[%clk 0:00:22.5]} 55... Rg3+ {[%clk 0:00:13.8]} 56. Kh2 {[%clk 0:00:22.4]}
56... Be5 {[%clk 0:00:12.3]} 57. Kh1 {[%clk 0:00:22.6]} 57... Nf2+ {[%clk
0:00:09.9]} 58. Kh2 {[%clk 0:00:22.9]} 58... Rxg4# {[%clk 0:00:10]} 0-1

[Event "*** SCC Grand Prix: Titled Tuesday Blitz"]
[Site "Chess.com"]
[Date "2020.09.29"]
[Round "4"]
[White "Arkady_Gitelson"]
[Black "Bulldog167"]
[Result "0-1"]
[WhiteElo "2572"]
[BlackElo "2805"]
[TimeControl "180+1"]
[EndTime "10:39:41 PDT"]
[Termination "Bulldog167 won on time"]

1. e4 {[%clk 0:03:00.9]} 1... e6 {[%clk 0:02:59.7]} 2. d4 {[%clk 0:03:00]} 2...
d5 {[%clk 0:03:00.3]} 3. Nc3 {[%clk 0:03:00.6]} 3... Bb4 {[%clk 0:03:00.3]} 4.
exd5 {[%clk 0:03:00.3]} 4... exd5 {[%clk 0:03:01.2]} 5. Bd3 {[%clk 0:03:00.5]}
5... Nc6 {[%clk 0:03:01.6]} 6. a3 {[%clk 0:02:59.5]} 6... Bxc3+ {[%clk
0:03:01.4]} 7. bxc3 {[%clk 0:02:59]} 7... Nge7 {[%clk 0:03:02]} 8. Qh5 {[%clk
0:02:58.2]} 8... Be6 {[%clk 0:03:01.7]} 9. Nf3 {[%clk 0:02:57.5]} 9... Qd7
{[%clk 0:02:57.5]} 10. Ng5 {[%clk 0:02:53.1]} 10... O-O-O {[%clk 0:02:38.6]} 11.
O-O {[%clk 0:02:51]} 11... g6 {[%clk 0:02:03.5]} 12. Qe2 {[%clk 0:02:45.5]}
12... Rde8 {[%clk 0:01:49.7]} 13. Nxe6 {[%clk 0:02:40.1]} 13... fxe6 {[%clk
0:01:50.6]} 14. a4 {[%clk 0:02:37.7]} 14... Nf5 {[%clk 0:01:48.1]} 15. Bb5
{[%clk 0:02:25.2]} 15... h6 {[%clk 0:01:39.5]} 16. a5 {[%clk 0:02:24.1]} 16...
a6 {[%clk 0:01:28.9]} 17. Bd3 {[%clk 0:01:46.4]} 17... e5 {[%clk 0:01:27.4]} 18.
dxe5 {[%clk 0:01:28.8]} 18... Nxe5 {[%clk 0:01:27.3]} 19. Qd1 {[%clk 0:01:28.3]}
19... Nxd3 {[%clk 0:00:56.4]} 20. cxd3 {[%clk 0:01:27.4]} 20... Re6 {[%clk
0:00:54.1]} 21. Bd2 {[%clk 0:01:04.4]} 21... Rhe8 {[%clk 0:00:53.6]} 22. Re1
{[%clk 0:01:04.6]} 22... Rxe1+ {[%clk 0:00:47.3]} 23. Bxe1 {[%clk 0:01:05.5]}
23... Qe6 {[%clk 0:00:46.7]} 24. Bd2 {[%clk 0:00:57]} 24... g5 {[%clk
0:00:42.6]} 25. h3 {[%clk 0:00:47.7]} 25... Qe2 {[%clk 0:00:38.1]} 26. Qc2
{[%clk 0:00:38.6]} 26... Qe6 {[%clk 0:00:33.3]} 27. Re1 {[%clk 0:00:33.7]} 27...
Qd7 {[%clk 0:00:33.7]} 28. Qd1 {[%clk 0:00:29.2]} 28... Nd6 {[%clk 0:00:29.5]}
29. Rxe8+ {[%clk 0:00:27.6]} 29... Qxe8 {[%clk 0:00:29.5]} 30. Qg4+ {[%clk
0:00:27.3]} 30... Kb8 {[%clk 0:00:27.8]} 31. Be3 {[%clk 0:00:23.3]} 31... Qb5
{[%clk 0:00:21.7]} 32. Qe6 {[%clk 0:00:17.4]} 32... Qxa5 {[%clk 0:00:21]} 33.
Qxh6 {[%clk 0:00:16.2]} 33... Qxc3 {[%clk 0:00:16.5]} 34. Qxg5 {[%clk
0:00:16.1]} 34... a5 {[%clk 0:00:17.1]} 35. Qd8+ {[%clk 0:00:15.1]} 35... Nc8
{[%clk 0:00:16.8]} 36. Qxd5 {[%clk 0:00:15.7]} 36... a4 {[%clk 0:00:16.4]} 37.
Bd4 {[%clk 0:00:13.7]} 37... Qc1+ {[%clk 0:00:09.7]} 38. Kh2 {[%clk 0:00:13.4]}
38... a3 {[%clk 0:00:10.2]} 39. h4 {[%clk 0:00:10.6]} 39... Qf4+ {[%clk
0:00:08.8]} 40. g3 {[%clk 0:00:10.1]} 40... Qd2 {[%clk 0:00:07.7]} 41. Kg2
{[%clk 0:00:07.6]} 41... a2 {[%clk 0:00:08.1]} 42. Qe5 {[%clk 0:00:07.2]} 42...
Qxd3 {[%clk 0:00:07.7]} 43. h5 {[%clk 0:00:07.2]} 43... Qh7 {[%clk 0:00:05.2]}
44. g4 {[%clk 0:00:07.1]} 44... Nd6 {[%clk 0:00:05.8]} 45. Qe2 {[%clk
0:00:05.3]} 45... Qg8 {[%clk 0:00:04.2]} 46. Kh3 {[%clk 0:00:04.3]} 46... b6
{[%clk 0:00:02.5]} 47. Qe3 {[%clk 0:00:03.8]} 47... Nc4 {[%clk 0:00:02.3]} 48.
Qb3 {[%clk 0:00:03]} 48... Qd5 {[%clk 0:00:01.4]} 49. Qxa2 {[%clk 0:00:02.6]}
49... Qh1+ {[%clk 0:00:02]} 50. Kg3 {[%clk 0:00:02.2]} 50... Qd5 {[%clk
0:00:02.5]} 0-1

[Event "*** SCC Grand Prix: Titled Tuesday Blitz"]
[Site "Chess.com"]
[Date "2020.09.29"]
[Round "4"]
[White "Shota_Azaladze"]
[Black "Sanan_Sjugirov"]
[Result "0-1"]
[WhiteElo "2655"]
[BlackElo "2851"]
[TimeControl "180+1"]
[EndTime "10:39:42 PDT"]
[Termination "Sanan_Sjugirov won by resignation"]

1. Nf3 {[%clk 0:03:00.9]} 1... d5 {[%clk 0:02:56.9]} 2. g3 {[%clk 0:03:00.2]}
2... Bg4 {[%clk 0:02:56.6]} 3. Bg2 {[%clk 0:03:00.5]} 3... e6 {[%clk 0:02:56.8]}
4. O-O {[%clk 0:03:00.7]} 4... c6 {[%clk 0:02:57]} 5. d4 {[%clk 0:02:58.6]} 5...
Nf6 {[%clk 0:02:50.6]} 6. Nbd2 {[%clk 0:02:58.6]} 6... Be7 {[%clk 0:02:47.5]} 7.
Re1 {[%clk 0:02:58.2]} 7... O-O {[%clk 0:02:47.3]} 8. c3 {[%clk 0:02:57.5]} 8...
a5 {[%clk 0:02:32.7]} 9. e4 {[%clk 0:02:56]} 9... a4 {[%clk 0:02:21.6]} 10. Qc2
{[%clk 0:02:25.8]} 10... Bh5 {[%clk 0:02:01.8]} 11. exd5 {[%clk 0:02:07.9]}
11... Nxd5 {[%clk 0:01:48.8]} 12. Ne5 {[%clk 0:02:01.7]} 12... Nd7 {[%clk
0:01:45.2]} 13. Ndc4 {[%clk 0:02:01.2]} 13... N7f6 {[%clk 0:01:21.2]} 14. Bd2
{[%clk 0:01:56.5]} 14... Qc7 {[%clk 0:01:18.4]} 15. h3 {[%clk 0:01:42.2]} 15...
c5 {[%clk 0:01:15.2]} 16. g4 {[%clk 0:01:34.6]} 16... Bg6 {[%clk 0:01:14]} 17.
Nxg6 {[%clk 0:01:34.2]} 17... hxg6 {[%clk 0:01:14.9]} 18. dxc5 {[%clk
0:01:00.1]} 18... Bxc5 {[%clk 0:01:15.8]} 19. Bg5 {[%clk 0:00:55.1]} 19... Bxf2+
{[%clk 0:01:08.2]} 20. Qxf2 {[%clk 0:00:53.6]} 20... Qxc4 {[%clk 0:01:08.1]} 21.
Bxf6 {[%clk 0:00:42.9]} 21... Nxf6 {[%clk 0:00:52.2]} 22. Bxb7 {[%clk
0:00:41.4]} 22... Rab8 {[%clk 0:00:51.7]} 23. Bg2 {[%clk 0:00:39.8]} 23... a3
{[%clk 0:00:48.6]} 24. bxa3 {[%clk 0:00:38.2]} 24... Qxc3 {[%clk 0:00:48.6]} 25.
Qe3 {[%clk 0:00:38.4]} 25... Qa5 {[%clk 0:00:45.9]} 26. Re2 {[%clk 0:00:36.3]}
26... Rfc8 {[%clk 0:00:41.6]} 27. Rf1 {[%clk 0:00:35.8]} 27... Rc3 {[%clk
0:00:37.2]} 28. Qf4 {[%clk 0:00:35.2]} 28... Rf8 {[%clk 0:00:30.6]} 29. Qb4
{[%clk 0:00:32]} 29... Qa7+ {[%clk 0:00:29]} 30. Kh1 {[%clk 0:00:31.2]} 30...
Rxa3 {[%clk 0:00:28.9]} 31. g5 {[%clk 0:00:31.2]} 31... Nh5 {[%clk 0:00:28.3]}
32. Ref2 {[%clk 0:00:17.4]} 32... Ng3+ {[%clk 0:00:27.6]} 33. Kh2 {[%clk
0:00:17.7]} 33... Nxf1+ {[%clk 0:00:25.6]} 34. Rxf1 {[%clk 0:00:18.6]} 34...
Qb8+ {[%clk 0:00:21.8]} 35. Qxb8 {[%clk 0:00:17.5]} 35... Rxb8 {[%clk
0:00:22.7]} 36. Rf2 {[%clk 0:00:17.9]} 36... Rb5 {[%clk 0:00:22.4]} 37. Bf1
{[%clk 0:00:18.1]} 37... Rxg5 {[%clk 0:00:21.1]} 38. Bc4 {[%clk 0:00:18.4]}
38... Rc5 {[%clk 0:00:20]} 39. Bb3 {[%clk 0:00:18.2]} 39... Ra7 {[%clk
0:00:18.9]} 40. h4 {[%clk 0:00:18.7]} 40... Kh7 {[%clk 0:00:17.1]} 41. Kg3
{[%clk 0:00:19.1]} 41... Rac7 {[%clk 0:00:13.5]} 42. Kf4 {[%clk 0:00:19.3]}
42... e5+ {[%clk 0:00:12.9]} 43. Kg4 {[%clk 0:00:19]} 43... f6 {[%clk 0:00:11]}
44. h5 {[%clk 0:00:18.7]} 44... gxh5+ {[%clk 0:00:10.6]} 45. Kxh5 {[%clk
0:00:19.5]} 45... g6+ {[%clk 0:00:11.1]} 46. Kg4 {[%clk 0:00:19.7]} 46... Kg7
{[%clk 0:00:12]} 47. Kf3 {[%clk 0:00:19.3]} 47... f5 {[%clk 0:00:12]} 48. Rg2
{[%clk 0:00:19.3]} 48... Kf6 {[%clk 0:00:12.2]} 49. Rh2 {[%clk 0:00:19.3]} 49...
e4+ {[%clk 0:00:12.5]} 50. Kf4 {[%clk 0:00:19.5]} 50... g5+ {[%clk 0:00:12.5]}
51. Ke3 {[%clk 0:00:19.8]} 51... Ke5 {[%clk 0:00:13.1]} 52. Rh8 {[%clk 0:00:19]}
52... Rc3+ {[%clk 0:00:13.2]} 53. Kd2 {[%clk 0:00:19.2]} 53... Kf4 {[%clk
0:00:13.8]} 54. Rh1 {[%clk 0:00:18.5]} 54... g4 {[%clk 0:00:12.5]} 55. Rf1+
{[%clk 0:00:18.1]} 55... Rf3 {[%clk 0:00:12.8]} 56. Rh1 {[%clk 0:00:17.7]} 56...
g3 {[%clk 0:00:12.7]} 57. Rh4+ {[%clk 0:00:17.6]} 57... Ke5 {[%clk 0:00:12.1]}
58. Rh8 {[%clk 0:00:18]} 58... Rg7 {[%clk 0:00:11.3]} 59. Rg8 {[%clk 0:00:18.9]}
59... Rxg8 {[%clk 0:00:11.1]} 0-1